bitfinex/quotes_ETHUSD_20250314
["timestamp","ask_amount","ask_price","bid_price","bid_amount"]
[1741912795129,12.95360533,1875.5,1875.2,5.33265]
[1741912795130,3.0,1875.5,1875.2,5.33265]
[1741912795320,17.639,1875.7,1875.3,5.88242]
[1741912795497,17.639,1875.7,1875.4,5.88196]
[1741912795692,17.639,1875.7,1875.5,5.33191]
[1741912796007,10.96944221,1875.8,1875.5,5.33191]
[1741912796309,10.96944221,1875.8,1875.4,6.47548796]
[1741912796687,5.63837221,1875.8,1875.5,5.33179]
[1741912797741,5.243,1875.8,1875.5,5.9267]
[1741912797917,5.243,1875.8,1875.5,6.5719418]
[1741912800415,3.0,1875.9,1875.7,5.33123]
[1741912800716,5.243,1876.0,1875.7,11.25745]
[1741912800903,9.8666,1876.1,1875.7,11.25745]
[1741912801084,5.243,1876.0,1875.8,5.33104]
[1741912801515,5.243,1876.0,1875.7,5.92622]
[1741912802029,27.9487906,1876.4,1876.0,5.33049]
[1741912802209,27.9487906,1876.4,1876.3,5.32963]
[1741912802210,17.641,1876.4,1876.3,5.32963]
[1741912802412,11.1037906,1876.6,1876.3,5.32963]
[1741912802723,5.242,1876.7,1876.5,5.32894]
[1741912802897,0.796,1876.8,1876.5,5.32894]
[1741912803229,23.6987,1877.1,1876.8,5.87804]
[1741912803390,5.242,1877.1,1876.5,10.65775]
[1741912803594,6.14548,1877.0,1876.6,5.87877]
[1741912803796,0.8177,1877.0,1876.6,5.87857]
[1741912804111,0.8177,1877.0,1876.7,5.32838]
[1741912804290,1.956423,1877.0,1876.7,5.32838]
[1741912805125,1.956423,1877.0,1876.6,5.87857]
[1741912805325,7.284263,1877.0,1876.6,5.87857]
[1741912805504,1.956423,1877.0,1876.6,5.87857]
[1741912805698,5.242,1877.1,1876.8,10.65615]
[1741912805909,5.242,1877.1,1876.9,0.55]
[1741912806221,14.7873006,1877.1,1876.6,5.32878]
[1741912806423,5.32768,1877.0,1876.6,5.32878]
[1741912806725,7.33917806,1877.0,1876.6,5.32878]
[1741912807023,0.8313,1876.9,1876.6,5.32878]
[1741912807707,6.15943,1876.9,1876.5,0.55]
[1741912807885,5.3284,1876.8,1876.5,0.55]
[1741912808091,6.15927,1876.9,1876.5,5.93232509]
[1741912808424,7.50912981,1876.9,1876.5,5.93232509]
[1741912809101,2.18115981,1876.9,1876.5,5.93232509]
[1741912809297,0.8313,1876.9,1876.5,5.93211509]
[1741912809497,3.0,1877.0,1876.6,5.87867]
[1741912809713,5.3281,1876.9,1876.5,0.55]
[1741912810031,5.32826,1876.8,1876.3,0.595]
[1741912810230,5.32883,1876.6,1876.2,5.32976]
[1741912810523,4.2177906,1876.9,1876.4,5.32911]
[1741912810524,10.3350706,1876.9,1876.4,5.32911]
[1741912810735,5.32863,1876.7,1876.4,0.55]
[1741912811025,10.3349206,1876.9,1876.5,5.32897]
[1741912811208,10.3349206,1876.9,1876.4,5.8791]
[1741912811526,5.3283,1876.8,1876.4,5.9323893]
[1741912811733,5.3283,1876.8,1876.4,5.8791]
[1741912811899,5.32861,1876.7,1876.4,0.55]
[1741912812095,5.32881,1876.6,1876.2,0.55]
[1741912812296,0.7599,1876.5,1876.2,5.87991]
[1741912812724,0.7599,1876.5,1876.2,0.55]
[1741912813229,15.5461906,1876.7,1876.2,5.93293344]
[1741912813540,15.5461906,1876.7,1876.2,11.26267344]
[1741912813541,5.3288,1876.6,1876.2,11.26267344]
[1741912813696,17.25744187,1876.7,1876.3,5.32963]
[1741912814935,9.4577906,1876.7,1876.4,0.55]
[1741912815230,5.24,1876.7,1876.5,0.595]
[1741912815904,5.24,1876.7,1876.5,5.92395]
[1741912817635,11.41761,1877.1,1876.7,5.32849]
[1741912817926,5.32798,1876.9,1876.6,0.55]
[1741912818294,6.10548,1876.9,1876.5,5.32894]
[1741912818719,6.10548,1876.9,1876.6,10.65732]
[1741912818720,0.7775,1876.9,1876.6,10.65732]
[1741912818918,0.7775,1876.9,1876.6,5.32859]
[1741912819127,0.7775,1876.9,1876.6,0.55]
[1741912819328,0.7775,1876.9,1876.5,0.55]
[1741912819659,0.7775,1876.9,1876.7,5.32848]
[1741912819850,3.8261,1877.1,1876.8,0.55]
[1741912820151,3.0,1877.1,1876.8,5.87821]
[1741912820658,3.0,1877.1,1876.9,5.32791]
[1741912821878,5.32651,1877.4,1877.0,1.145]
[1741912822208,9.5443006,1877.4,1877.0,0.55]
[1741912822369,5.32722,1877.2,1876.8,0.595]
[1741912822661,5.32687,1877.3,1876.9,5.38109405]
[1741912822951,11.80726597,1877.5,1877.0,5.87741]
[1741912823318,17.13371597,1877.5,1877.1,5.32733]
[1741912823823,17.13363597,1877.5,1877.1,5.32733]
[1741912824023,5.246,1877.5,1877.1,0.595]
[1741912824225,5.246,1877.5,1877.2,5.32681]
[1741912824727,5.245,1877.5,1877.2,5.32681]
[1741912825246,9.5437506,1877.6,1877.2,6.451718]
[1741912825439,14.7857506,1877.6,1877.2,6.451718]
[1741912825637,9.4597906,1877.6,1877.3,5.32669]
[1741912825844,5.32623,1877.5,1877.2,1.124908]
[1741912826038,5.32623,1877.5,1877.2,0.55]
[1741912827651,10.65272,1877.5,1877.2,0.55]
[1741912827852,5.32623,1877.5,1877.2,0.55]
[1741912828358,5.32623,1877.5,1877.1,0.595]
[1741912828359,5.32669,1877.4,1877.1,0.595]
[1741912828934,5.32669,1877.4,1877.1,0.55]
[1741912829341,5.32623,1877.5,1877.1,7.05111866]
[1741912829650,14.7857406,1877.6,1877.3,0.55]
[1741912829651,14.7857506,1877.6,1877.3,0.55]
[1741912829839,14.7857506,1877.6,1877.3,5.87666]
[1741912829840,3.0,1877.6,1877.3,5.87666]
[1741912830019,0.207,1877.7,1877.5,5.32623]
[1741912830221,0.207,1877.7,1877.5,6.44476164]
[1741912830435,0.207,1877.7,1877.5,7.03976164]
[1741912830641,0.207,1877.7,1877.6,5.87594]
[1741912831031,0.207,1877.7,1877.6,1.145]
[1741912831236,0.207,1877.7,1877.5,1.065274]
[1741912831433,0.207,1877.7,1877.5,1.11853018]
[1741912831633,0.207,1877.7,1877.5,6.391314]
[1741912831838,0.207,1877.7,1877.6,0.6391314]
[1741912832221,0.207,1877.7,1877.6,6.5150714]
[1741912832424,0.207,1877.7,1877.6,1.1891314]
[1741912832827,0.207,1877.7,1877.4,0.595]
[1741912833035,0.207,1877.7,1877.5,5.37937707]
[1741912833228,0.207,1877.7,1877.5,5.32612]
[1741912833429,0.207,1877.7,1877.6,0.55]
[1741912834265,0.207,1877.7,1877.6,5.32594]
[1741912834465,0.207,1877.7,1877.6,1.120198]
[1741912834832,0.207,1877.7,1877.6,6.4993902]
[1741912835267,0.207,1877.7,1877.6,1.1734502]
[1741912835577,0.207,1877.7,1877.6,1.17344991]
[1741912835729,0.207,1877.7,1877.6,1.120198]
[1741912835930,0.207,1877.7,1877.6,7.04938958]
[1741912836236,0.207,1877.7,1877.6,7.591138]
[1741912836435,0.207,1877.7,1877.6,7.64438637]
[1741912837047,0.207,1877.7,1877.6,7.591138]
[1741912841136,0.8082,1878.5,1878.2,10.64813]
[1741912841455,22.88,1878.6,1878.3,5.3239]
[1741912842065,22.88,1878.6,1878.2,6.503333]
[1741912842231,28.20312,1878.6,1878.2,6.503333]
[1741912843669,22.88,1878.6,1878.3,5.87393]
[1741912843846,5.256,1878.6,1878.3,5.87393]
[1741912844165,10.57932,1878.6,1878.4,0.587393]
[1741912844365,10.57932,1878.6,1878.3,0.55]
[1741912845950,10.57932,1878.6,1878.3,5.87395]
[1741912846366,10.57932,1878.6,1878.3,0.55]
[1741912846949,10.57932,1878.6,1878.3,5.87395]
[1741912847149,5.256,1878.6,1878.3,5.87395]
[1741912847353,5.256,1878.6,1878.3,7.16491351]
[1741912847883,3.0,1878.6,1878.3,7.16491351]
[1741912848084,3.0,1878.7,1878.4,5.32354]
[1741912848284,5.32269,1878.8,1878.3,1.7877313]
[1741912848587,10.55883,1878.7,1878.3,5.87391]
[1741912848787,10.55883,1878.7,1878.3,11.19766]
[1741912849083,4.2177906,1878.9,1878.4,0.595]
[1741912849293,4.2177906,1878.9,1878.6,0.55]
[1741912849294,8.32238,1878.9,1878.6,0.55]
[1741912849883,9.4527906,1879.0,1878.6,6.460295]
[1741912850197,14.7747706,1879.0,1878.6,11.783225]
[1741912850499,14.7747706,1879.0,1878.7,5.3228]
[1741912850655,0.7614,1879.1,1878.7,5.32265]
[1741912850855,5.237,1879.0,1878.8,5.854685]
[1741912851107,18.3931,1879.3,1878.9,5.32209]
[1741912851384,18.3931,1879.3,1879.0,5.32186]
[1741912851385,0.7771,1879.3,1879.0,5.32186]
[1741912851773,6.09,1879.5,1879.1,6.46665]
[1741912851977,5.32067,1879.5,1879.1,6.46665]
[1741912852175,10.6408,1879.6,1879.2,0.69987238]
[1741912852476,6.12903,1879.3,1878.9,0.595]
[1741912852675,0.8079,1879.3,1879.0,0.55]
[1741912853058,6.12913,1879.3,1879.0,0.55]
[1741912853356,0.8079,1879.3,1879.0,0.55]
[1741912854285,5.32144,1879.2,1878.9,0.55]
[1741912854506,5.32174,1879.1,1878.7,5.91782]
[1741912854688,5.32174,1879.1,1878.8,1.141782]
[1741912855007,0.7979,1879.1,1878.5,1.67554432]
[1741912855289,0.7979,1879.1,1878.7,5.32271]
[1741912855290,6.11971,1879.1,1878.7,5.32271]
[1741912855454,5.32142,1879.2,1878.8,0.55]
[1741912855786,3.0,1879.2,1878.8,0.55]
[1741912856010,5.32193,1879.1,1878.8,0.55]
[1741912856186,5.32193,1879.1,1878.8,1.137265]
[1741912856390,3.0,1879.2,1879.0,0.55]
[1741912856574,3.0,1879.2,1879.0,5.8719]
[1741912856889,3.0,1879.2,1879.0,0.55]
[1741912857067,3.0,1879.2,1879.0,1.137208]
[1741912857259,5.32181,1879.1,1878.6,5.91806]
[1741912857470,5.32181,1879.1,1878.7,5.37579883]
[1741912857674,6.10309,1879.0,1878.6,5.91807]
[1741912857873,6.10309,1879.0,1878.7,0.05322281]
[1741912858186,6.10309,1879.0,1878.6,5.91807]
[1741912858365,6.10309,1879.0,1878.7,0.05322281]
[1741912859177,0.781,1879.0,1878.7,0.05322281]
[1741912859388,3.7985,1879.2,1878.8,0.55]
[1741912859804,5.32172,1879.1,1878.9,0.05321742]
[1741912860121,5.32172,1879.1,1878.8,0.55]
[1741912860323,9.12007,1879.2,1878.8,5.92569914]
[1741912860493,5.32109,1879.4,1879.0,5.87185]
[1741912860494,6.11949,1879.4,1879.0,5.87185]
[1741912860674,0.7985,1879.4,1879.1,5.32155]
[1741912860879,6.0635,1879.4,1879.1,5.32155]
[1741912861074,11.38437,1879.4,1879.0,5.87185]
[1741912861507,5.32161,1879.2,1878.8,0.55]
[1741912861830,5.3217,1879.1,1878.8,0.55]
[1741912862125,5.32238,1878.9,1878.7,0.55]
[1741912862300,5.32238,1878.9,1878.6,0.39195625]
[1741912862481,6.08926,1879.1,1878.6,0.44517949]
[1741912862676,6.08926,1879.1,1878.7,5.3228]
[1741912863109,11.41114,1879.1,1878.6,6.3512932]
[1741912863429,5.32203,1879.0,1878.6,11.09114968]
[1741912863576,11.41113,1879.1,1878.7,5.32279]
[1741912863915,5.32204,1879.0,1878.6,5.32298]
[1741912864091,5.32204,1879.0,1878.6,0.60322344]
[1741912864278,10.58104,1879.0,1878.6,0.60322344]
[1741912864611,17.038124,1879.0,1878.6,0.55]
[1741912864813,5.3223,1878.9,1878.5,0.595]
[1741912865030,5.3223,1878.9,1878.6,0.05322396]
[1741912865227,11.715884,1879.0,1878.6,5.37621396]
[1741912865428,6.393844,1879.0,1878.6,10.69909396]
[1741912865705,5.259,1879.0,1878.7,5.3227]
[1741912866824,10.58106,1879.0,1878.6,5.87299]
[1741912867010,5.259,1879.0,1878.7,5.3227]
[1741912867705,5.259,1879.0,1878.7,10.64535]
[1741912867914,5.259,1879.0,1878.8,5.3225]
[1741912868227,12.5389306,1879.3,1879.0,5.32196]
[1741912868228,9.0776,1879.3,1879.0,5.32196]
[1741912868727,14.3988,1879.3,1878.9,6.46701]
[1741912869030,5.32158,1879.2,1878.9,0.55]
[1741912869698,10.64321,1879.2,1878.8,5.32236]
[1741912869900,5.32171,1879.1,1878.8,0.55]
[1741912870204,6.386031,1879.1,1878.8,0.55]
[1741912870380,0.8139,1878.9,1878.5,0.595]
[1741912870722,5.32208,1879.0,1878.6,5.37614473]
[1741912870885,6.13585,1879.1,1878.7,5.32274]
[1741912871091,0.8139,1879.1,1878.8,5.9257146]
[1741912871284,3.0,1879.2,1878.8,6.46749]
[1741912871285,15.90016,1879.2,1878.8,6.46749]
[1741912871503,10.57853,1879.2,1878.8,11.78981]
[1741912871817,10.57853,1879.2,1878.8,6.46732]
[1741912872218,10.57853,1879.2,1878.8,11.78967]
[1741912872411,5.32153,1879.2,1878.8,11.78967]
[1741912872608,6.0759,1879.3,1879.0,0.55]
[1741912872801,5.262,1879.3,1879.1,5.32152]
[1741912873003,3.0,1879.4,1879.1,5.32152]
[1741912873203,8.3209,1879.4,1879.0,5.87171]
[1741912874392,5.32133,1879.3,1878.8,6.31114142]
[1741912874592,10.3442106,1879.2,1878.8,0.94366142]
[1741912874795,10.3442106,1879.2,1878.8,0.99687995]
[1741912874796,5.32184,1879.1,1878.8,0.99687995]
[1741912875022,10.58384,1879.1,1878.8,0.39366142]
[1741912875192,10.58384,1879.1,1878.7,0.55]
[1741912875389,5.32205,1879.0,1878.7,5.87282]
[1741912875589,10.58384,1879.1,1878.7,5.87282]
[1741912875823,10.58384,1879.1,1878.7,5.92585076]
[1741912876419,5.32198,1879.0,1878.7,5.87263]
[1741912876637,5.32198,1879.0,1878.7,0.55]
[1741912876844,5.32234,1878.9,1878.5,5.71691142]
[1741912877003,6.12844,1878.9,1878.5,0.39366142]
[1741912877203,6.12844,1878.9,1878.5,0.44688619]
[1741912877531,6.12844,1878.9,1878.5,5.37643477]
[1741912877835,6.12844,1878.9,1878.5,6.50594425]
[1741912878340,5.32254,1878.8,1878.3,0.39366142]
[1741912878630,5.32254,1878.8,1878.4,5.77039236]
[1741912879707,5.32284,1878.7,1878.4,0.60323094]
[1741912879893,6.13447,1878.6,1878.2,5.91922]
[1741912880102,0.8113,1878.6,1878.3,5.87379]
[1741912880426,10.57284,1878.7,1878.3,11.25082244]
[1741912880621,10.57284,1878.7,1878.3,11.19759]
[1741912880798,10.57284,1878.7,1878.3,5.87379]
[1741912881131,10.57284,1878.7,1878.3,5.92702247]
[1741912881638,6.08785,1878.5,1878.1,0.595]
[1741912881939,0.7643,1878.5,1878.0,5.3248]
[1741912882144,5.32406,1878.3,1877.9,5.92009]
[1741912882305,5.32406,1878.3,1877.9,5.37833237]
[1741912882509,5.249,1878.3,1877.9,0.39473226]
[1741912882740,5.32466,1878.1,1877.9,0.39473226]
[1741912883038,10.3061006,1878.0,1877.9,0.39473226]
[1741912884313,5.32509,1877.9,1877.3,5.92179]
[1741912884643,5.32509,1877.9,1877.2,1.43823558]
[1741912884644,11.42405,1877.6,1877.2,0.39473226]
[1741912884948,5.32679,1877.3,1877.2,0.39473226]
[1741912885238,14.8712106,1877.4,1877.2,0.39473226]
[1741912885447,9.5444506,1877.4,1877.2,0.39473226]
[1741912885744,9.5444206,1877.4,1876.9,11.25045]
[1741912885929,9.5444206,1877.4,1877.0,0.55]
[1741912886096,5.32695,1877.3,1876.9,7.047725]
[1741912886295,9.5444206,1877.4,1876.9,7.047725]
[1741912886627,9.5444206,1877.4,1877.0,5.32764]
[1741912886824,5.32663,1877.4,1876.9,0.05327092]
[1741912887360,6.0568,1877.5,1877.0,5.32765]
[1741912887639,6.0568,1877.5,1877.1,5.32715]
[1741912887640,11.38303,1877.5,1877.1,5.32715]
[1741912888141,5.32659,1877.4,1877.0,5.86574209]
[1741912888364,5.32659,1877.4,1877.0,5.86562209]
[1741912888519,15.6008206,1877.5,1877.0,11.19312209]
[1741912888703,15.6008206,1877.5,1877.1,5.3273]
[1741912889226,10.2745906,1877.5,1877.1,5.3273]
[1741912889754,15.6009506,1877.5,1877.1,5.3273]
[1741912890164,10.2745906,1877.5,1877.2,5.32705]
[1741912890369,15.6009606,1877.5,1877.1,10.6545]
[1741912890662,15.6009606,1877.5,1877.1,5.32724]
[1741912891031,15.6009606,1877.5,1877.1,5.32722]
[1741912891228,5.32657,1877.4,1877.0,5.86573209]
[1741912891434,5.32657,1877.4,1877.0,5.32764]
[1741912892167,5.3269,1877.3,1876.9,5.87781]
[1741912893363,10.65333,1877.4,1877.0,5.32763]
[1741912893731,5.32657,1877.4,1877.0,5.32763]
[1741912894328,10.65331,1877.4,1876.9,5.87781]
[1741912894564,6.464984,1877.4,1876.9,5.87779]
[1741912894766,5.32657,1877.4,1877.0,5.32764]
[1741912895976,3.0,1877.4,1877.1,5.32734]
[1741912896556,3.0,1877.4,1877.0,5.32764]
[1741912896756,8.32662,1877.4,1877.0,5.32764]
[1741912897158,8.32662,1877.4,1877.0,10.65511]
[1741912898183,8.32662,1877.4,1877.0,5.32747]
[1741912898558,8.32662,1877.4,1877.0,10.65491]
[1741912899084,3.0,1877.4,1877.1,5.32735]
[1741912899257,3.0,1877.4,1877.0,5.32744]
[1741912899699,3.0,1877.4,1876.9,0.60327076]
[1741912899700,5.32701,1877.3,1876.9,0.55]
[1741912899846,5.32712,1877.2,1876.7,5.92348]
[1741912900058,5.32838,1876.8,1876.5,0.595]
[1741912900288,6.11288,1876.8,1876.4,5.32909]
[1741912900490,6.11288,1876.8,1876.5,0.55]
[1741912900693,6.11288,1876.8,1876.4,5.32909]
[1741912900869,5.32852,1876.7,1876.3,5.92451]
[1741912901226,5.237,1876.7,1876.4,5.38241673]
[1741912901407,5.237,1876.7,1876.5,5.32885]
[1741912902306,5.237,1876.7,1876.6,0.55]
[1741912902492,5.237,1876.7,1876.6,5.87878]
[1741912903375,5.237,1876.7,1876.6,6.999543]
[1741912903883,11.38542,1877.0,1876.6,6.999543]
[1741912904062,11.38542,1877.0,1876.6,12.328143]
[1741912904266,3.8095,1877.2,1876.9,5.32771]
[1741912904591,3.8095,1877.2,1876.8,5.32815]
[1741912904592,9.13672,1877.2,1876.8,0.55]
[1741912904765,3.8095,1877.2,1876.8,0.55]
[1741912904962,5.238,1877.3,1877.1,5.32736]
[1741912905265,5.238,1877.3,1877.1,5.32725]
[1741912905469,6.0564,1877.4,1877.1,10.65439]
[1741912905911,0.8184,1877.4,1877.2,5.32703]
[1741912906103,3.0,1877.5,1877.2,5.32703]
[1741912906312,8.238,1877.5,1877.2,5.32703]
[1741912906465,8.238,1877.5,1877.3,5.32667]
[1741912906466,5.238,1877.5,1877.3,5.32667]
[1741912906799,5.238,1877.5,1877.3,0.55]
[1741912907200,6.08375,1877.6,1877.3,0.55]
[1741912907402,11.32175,1877.6,1877.3,0.55]
[1741912908405,5.9958,1877.6,1877.3,0.55]
[1741912908701,8.3259,1877.7,1877.4,5.32644]
[1741912908702,8.238,1877.7,1877.4,5.32644]
[1741912908909,3.0,1877.7,1877.3,5.87672]
[1741912909203,13.56377,1877.7,1877.3,5.87672]
[1741912909769,10.56377,1877.7,1877.3,5.92998245]
[1741912910270,5.238,1877.7,1877.4,5.32633]
[1741912910465,10.56367,1877.7,1877.3,5.32673]
[1741912911002,10.56367,1877.7,1877.3,10.65336]
[1741912911190,10.56367,1877.7,1877.3,11.773696]
[1741912911390,10.56367,1877.7,1877.3,6.446966]
[1741912911692,5.238,1877.7,1877.4,5.32651]
[1741912911994,5.238,1877.7,1877.4,5.32636]
[1741912912194,10.5634,1877.8,1877.4,5.32636]
[1741912913209,0.781,1877.9,1877.4,1.2368476]
[1741912913361,22.856,1878.0,1877.5,0.60325989]
[1741912913564,0.7698,1878.3,1878.0,5.32468]
[1741912913789,5.237,1878.2,1877.9,5.87506]
[1741912914100,22.94433,1878.6,1878.3,5.3237]
[1741912914101,17.621,1878.6,1878.3,5.3237]
[1741912914275,17.621,1878.6,1878.1,0.55]
[1741912914276,22.858,1878.6,1878.2,5.32421]
[1741912915282,22.858,1878.6,1878.3,5.32388]
[1741912915661,22.858,1878.6,1878.2,10.64833]
[1741912915862,4.9875906,1878.8,1878.4,5.32354]
[1741912916170,5.237,1878.8,1878.6,5.32304]
[1741912916392,5.237,1878.9,1878.6,5.32304]
[1741912917102,5.237,1878.9,1878.5,5.32337]
[1741912917398,11.695339,1878.9,1878.5,5.32337]
[1741912917594,6.373019,1878.9,1878.5,5.32337]
[1741912917763,6.373019,1878.9,1878.6,5.32306]
[1741912918299,6.373019,1878.9,1878.5,10.64663]
[1741912918478,6.373019,1878.9,1878.6,5.32308]
[1741912919003,0.8012,1879.0,1878.5,0.55]
[1741912919298,6.09,1879.1,1878.9,5.32213]
[1741912919596,5.236,1879.2,1878.8,5.32253]
[1741912919766,5.236,1879.2,1878.8,10.69808008]
[1741912919971,5.236,1879.2,1878.8,5.32233]
[1741912920168,10.55758,1879.2,1878.7,5.32279]
[1741912920372,5.32203,1879.0,1878.6,5.32288]
[1741912920695,5.3219,1879.1,1878.7,5.32278]
[1741912921291,5.32202,1879.0,1878.6,10.64587]
[1741912921491,5.3219,1879.1,1878.6,5.32288]
[1741912921688,12.91799112,1879.2,1878.5,0.55]
[1741912921901,6.07478,1878.9,1878.5,0.05322444]
[1741912922204,6.07477,1878.9,1878.5,5.37639444]
[1741912922606,6.07477,1878.9,1878.4,5.97184802]
[1741912922978,0.7524,1878.9,1878.4,5.97168802]
[1741912923199,0.7524,1878.9,1878.6,5.32307]
[1741912923410,0.7524,1878.9,1878.5,5.32318]
[1741912923411,1.359858,1878.9,1878.5,5.32318]
[1741912923701,5.32299,1878.7,1878.2,5.91911]
[1741912923925,5.32358,1878.5,1878.0,5.91976]
[1741912924102,11.44514,1878.5,1878.0,5.91976]
[1741912924308,6.12145,1878.5,1878.0,6.5079846]
[1741912924521,0.7979,1878.5,1877.9,5.912486]
[1741912924801,5.32427,1878.2,1877.8,5.92032]
[1741912925019,0.7865,1878.1,1877.7,5.32543]
[1741912925201,0.7865,1878.1,1877.8,5.3784276]
[1741912925406,0.7865,1878.1,1877.8,5.32518]
[1741912926107,0.7865,1878.1,1877.8,5.37842726]
[1741912926287,0.7865,1878.1,1877.7,10.65118]
[1741912926609,0.7865,1878.1,1877.8,5.37853726]
[1741912926787,0.7865,1878.1,1877.9,5.32491]
[1741912927107,0.7865,1878.1,1877.9,5.32489]
[1741912927612,15.88164,1878.4,1878.3,5.32396]
[1741912927613,5.234,1878.4,1878.3,5.32396]
[1741912927997,6.0582,1878.7,1878.5,5.32324]
[1741912928303,6.73827916,1879.1,1878.8,5.32254]
[1741912928500,6.0315,1879.1,1878.8,5.32236]
[1741912929081,5.234,1879.1,1879.0,5.32197]
[1741912929301,22.853,1879.3,1879.1,5.32167]
[1741912929488,17.619,1879.3,1879.0,10.64361]
[1741912929699,22.853,1879.3,1879.0,10.64361]
[1741912929890,17.619,1879.3,1879.0,10.64361]
[1741912930106,17.619,1879.3,1879.1,5.32164]
[1741912930382,17.619,1879.3,1879.0,0.58070505]
[1741912930589,22.94015,1879.3,1878.9,5.32212]
[1741912931209,17.619,1879.3,1878.9,5.32204]
[1741912931422,17.619,1879.3,1879.1,5.32154]
[1741912931718,0.7975,1879.4,1879.2,5.32115]
[1741912931913,6.0315,1879.4,1879.2,5.32115]
[1741912932916,6.0315,1879.4,1879.2,11.174475]
[1741912933219,6.0315,1879.4,1879.3,5.32113]
[1741912933417,0.8276,1879.7,1879.4,5.32063]
[1741912933718,5.234,1879.6,1879.4,5.32063]
[1741912933922,0.7526,1879.9,1879.6,5.32016]
[1741912934085,0.7526,1879.9,1879.6,5.3201]
[1741912934291,5.233,1880.1,1879.9,5.31943]
[1741912934837,5.233,1880.1,1879.8,5.31959]
[1741912935315,10.55195,1880.1,1879.7,5.31985]
[1741912935519,5.233,1880.1,1879.8,5.3197]
[1741912936319,5.233,1880.1,1879.8,6.383505]
[1741912936516,5.233,1880.1,1879.8,1.063955]
[1741912936706,5.233,1880.1,1879.4,5.32083]
[1741912936707,5.31973,1879.8,1879.4,5.32083]
[1741912937288,5.32063,1879.5,1879.1,5.91649]
[1741912937494,5.233,1879.7,1878.9,5.91725]
[1741912937495,6.14634,1879.4,1878.9,5.91725]
[1741912937694,5.3214,1879.3,1878.9,5.32225]
[1741912937920,5.24,1879.3,1879.0,5.32196]
[1741912938120,5.24,1879.3,1879.1,5.32161]
[1741912938298,5.24,1879.3,1879.2,5.32141]
[1741912938700,6.14563,1879.6,1879.3,5.32109]
[1741912938701,6.0693,1879.6,1879.3,5.32109]
[1741912939723,5.244,1879.6,1879.4,5.32072]
[1741912939933,5.244,1879.6,1879.3,5.3211]
[1741912940111,5.244,1879.6,1879.3,6.444827]
[1741912940309,5.244,1879.6,1879.4,5.32084]
[1741912940627,5.241,1879.7,1879.4,5.32084]
[1741912940924,5.241,1879.7,1879.4,5.3206]
[1741912941107,5.241,1879.7,1879.5,10.6408]
[1741912941308,5.239,1879.7,1879.6,5.32021]
[1741912941915,5.238,1879.8,1879.7,5.31999]
[1741912942104,5.247,1880.0,1879.8,5.31948]
[1741912942293,5.247,1880.0,1879.9,5.3194]
[1741912943395,17.604,1880.1,1880.0,5.31914]
[1741912943637,0.8032,1880.4,1880.0,6.382824]
[1741912943929,5.244,1880.3,1880.2,5.31858]
[1741912944120,6.0532,1880.4,1880.2,5.31858]
[1741912944517,6.0532,1880.4,1880.1,10.63737]
[1741912944833,6.0532,1880.4,1880.1,5.31862]
[1741912945005,6.0532,1880.4,1880.1,10.6373]
[1741912945209,6.0532,1880.4,1880.1,6.38235]
[1741912945516,11.37121,1880.4,1880.0,5.31913]
[1741912946599,6.0532,1880.4,1880.1,5.31886]
[1741912947629,11.37121,1880.4,1880.0,5.31913]
[1741912947829,5.31877,1880.2,1879.7,10.63965]
[1741912948226,0.7874,1880.0,1879.5,11.70484]
[1741912948427,11.35268,1880.0,1879.5,11.70485]
[1741912948926,10.56528,1880.0,1879.6,5.32023]
[1741912949226,15.88455,1880.0,1879.6,5.32014]
[1741912949434,10.56522,1880.0,1879.6,5.32013]
[1741912949931,5.32002,1879.7,1879.2,5.9163]
[1741912950143,5.32041,1879.6,1879.1,5.32145]
[1741912950335,5.32041,1879.6,1879.2,5.32137]
[1741912950522,5.32104,1879.4,1878.9,5.91699]
[1741912950725,5.32104,1879.4,1879.0,5.3750294]
[1741912950931,0.7817,1879.5,1879.1,5.32166]
[1741912951109,0.7817,1879.5,1879.2,5.3214]
[1741912951311,5.245,1879.5,1879.3,5.32098]
[1741912951512,5.245,1879.5,1879.3,5.32089]
[1741912952428,5.245,1879.5,1879.4,5.32084]
[1741912952617,5.245,1879.5,1879.3,5.32089]
[1741912953337,5.245,1879.5,1879.4,5.32084]
[1741912954112,5.20093026,1879.5,1879.4,5.32084]
[1741912954809,5.20093026,1879.5,1879.1,0.55]
[1741912954810,5.20093026,1879.5,1879.2,5.32138]
[1741912955229,5.20093026,1879.5,1879.3,5.32097]
[1741912955437,5.20093026,1879.5,1879.3,5.32095]
[1741912955620,5.20093026,1879.5,1879.4,5.32084]
[1741912956124,0.7609,1879.9,1879.6,5.32026]
[1741912956327,5.9979,1879.9,1879.5,5.32036]
[1741912956609,5.237,1879.9,1879.7,5.31973]
[1741912956805,5.237,1879.9,1879.7,10.6396]
[1741912957138,5.237,1879.9,1879.7,5.31973]
[1741912957323,5.237,1879.9,1879.8,5.31971]
[1741912957547,0.8128,1880.1,1879.8,5.31971]
[1741912957725,8.443,1880.2,1879.9,5.31924]
[1741912958132,0.207,1880.2,1879.9,5.31924]
[1741912958310,0.207,1880.2,1880.0,5.31903]
[1741912959205,7.99304312,1880.2,1879.5,0.78328997]